Cogmind - Beta 13 @@@ ROGUE MODE // 2024.04.17 @ 16:59:19 Player: Nicky Result: Destroyed by H-66 Slayer with Gauss Rifle Performance ------------- Evolutions (4) 2000 Regions Visited (8) 1600 Robots Destroyed (16) 80 Value Destroyed (583) 583 Prototype IDs (25) 500 Alien Tech Used (0) 0 Bonus (800) 800 TOTAL SCORE: 5563 Bonus ------- Entered DSFs 500 Aligned with FarCom 300 Cogmind --------- Core Integrity 0/850 Matter 158/300 Energy 70/100 System Corruption 11% Temperature Cool (0) Movement Core (150) Ox2 Location -6/Factory Parts ------- > --- POWER (1) -------- (None) > --- PROPULSION (5) --- Gravmag Array Gravmag Array > --- UTILITY (6) ------ Layered Medium Armor Plating System Shield > --- WEAPON (3) ------- (None) > --- INVENTORY (5) ---- Light Nuclear Core Structural Scanner Peak State ------------ > --- POWER ------------ Light Nuclear Core > --- PROPULSION ------- Wheel Wheel Improved Flight Unit Cesium-ion Thruster > --- UTILITY ---------- Improved Heat Sink Small Storage Unit Signal Interpreter Improved Light Armor Plating > --- WEAPON ----------- AWS/Gauss > --- INVENTORY -------- Flight Unit Flight Unit Structural Scanner Propulsion Shielding Improved Shield Generator Heavy Rocket Launcher Heavy Flail [Rating: 36] Favorites ----------- Power Light Nuclear Core Engine Ion Engine Power Core Light Nuclear Core Propulsion Flight Unit Treads Light Treads Leg Aluminum Leg Wheel Wheel Hover Unit Gravmag Array Flight Unit Flight Unit Utility Small Storage Unit Device Improved Heat Sink Storage Small Storage Unit Processor Signal Interpreter Hackware System Shield Protection Improved Light Armor Plating Weapon Beam Rifle Energy Gun Beam Rifle Ballistic Gun AWS/Gauss Launcher Heavy Rocket Launcher Impact Weapon Heavy Flail Build | -11 -10 -10 -10 -9 -8 -7 -7 -6 ------- Run | Yrd Mat Min Exi Min Mat Fac DSF Fac Slots Evolved 8 | . . . . . 4 2 . 2 Power . | . . . . . . . . . Propulsion 3 | . . . . . 2 . . 1 Utility 4 | . . . . . 2 1 . 1 Weapon 1 | . . . . . . 1 . . Parts Attached 63 | 6 10 2 1 9 15 2 1 17 Power 5 | 1 . . . 1 2 . 1 . Engine 1 | 1 . . . . . . . . Core 4 | . . . . 1 2 . 1 . Reactor . | . . . . . . . . . Propulsion 31 | 2 7 2 . 7 6 . . 7 Treads 2 | . 2 . . . . . . . Leg 4 | 2 . . . . . . . 2 Wheel 9 | . 1 1 . 5 1 . . 1 Hover 2 | . . . . . . . . 2 Flight 14 | . 4 1 . 2 5 . . 2 Utility 10 | 1 1 . . . 4 1 . 3 Device 2 | . . . . . 1 . . 1 Storage 1 | 1 . . . . . . . . Processor 1 | . 1 . . . . . . . Hackware 1 | . . . . . . 1 . . Protection 5 | . . . . . 3 . . 2 Artifact . | . . . . . . . . . Weapon 17 | 2 2 . 1 1 3 1 . 7 Energy Gun 5 | 2 2 . . . . . . 1 Energy Cannon . | . . . . . . . . . Ballistic Gun 4 | . . . 1 1 1 . . 1 Ballistic Cannon . | . . . . . . . . . Launcher 3 | . . . . . 1 . . 2 Special Weapon . | . . . . . . . . . Impact Weapon 5 | . . . . . 1 1 . 3 Slashing Weapon . | . . . . . . . . . Piercing Weapon . | . . . . . . . . . Special Melee Weapon . | . . . . . . . . . Unidentified Prototypes 1 | . . . . . . . . 1 Parts Lost 19 | . . . . 1 1 . . 17 Power . | . . . . . . . . . Propulsion 11 | . . . . 1 1 . . 9 Utility 5 | . . . . . . . . 5 Weapon 3 | . . . . . . . . 3 Highest Loss Streak 17 | . . . . 1 1 . . 17 To Critical Strikes 1 | . . . . . . . . 1 Average Slot Usage (%) 77 | . 89 85 81 76 90 76 84 37 Core 2 | . . . . 6 9 7 7 1 Wheel 14 | . 2 14 14 21 24 . . . Flight 11 | . 11 14 14 5 8 30 30 7 Device 1 | . . . . . 9 7 7 4 Storage 12 | . 14 14 14 14 9 7 7 3 Processor 11 | . 13 14 14 14 9 7 7 1 Protection 1 | . . . . . 8 7 7 3 Energy Gun 12 | . 28 28 20 . . . . . Ballistic Gun 4 | . . . 3 13 3 . . . Naked Turns . | . . . . . . . . . Heaviest Build 26 | 12 12 11 15 20 26 17 17 21 Greatest Support 40 | 20 40 16 16 26 30 18 18 40 Greatest Overweight (x) 3 | 3 2 . . 1 1 . . 2 Average Overweight (x) . | . . . . . . . . . Largest Inventory Capacity 8 | 8 8 8 8 8 8 8 8 8 Average Capacity 7 | 7 8 8 8 8 8 8 8 6 Most Carried 8 | 6 8 8 8 8 8 8 8 8 Average Carried 7 | 5 7 8 7 7 7 7 7 5 Final Capacity 8 | 8 8 8 8 8 8 8 8 5 Final Carried 8 | 6 8 8 8 7 8 7 8 2 Class Distribution -------------------- 83% | Mutant 10% | Scavenger-Mutant 5% | Sprinter Dominant Class ---------------- Mutant | -10/Materials Mutant | -10/Mines Mutant | -10/Exiles Mutant | -9/Mines Scavenger-Mutant | -8/Materials Sprinter | -7/Factory Sprinter | -7/DSF Mutant | -6/Factory Resources | -11 -10 -10 -10 -9 -8 -7 -7 -6 ----------- Run | Yrd Mat Min Exi Min Mat Fac DSF Fac Matter Collected 635 | 203 127 44 . 106 107 . . 48 Remotely . | . . . . . . . . . Salvage Created 686 | . . . . 289 113 . . 284 Parts 23 | . . . . 2 5 . . 16 Haulers Intercepted 1 | . . . . . 1 . . . Recyclers Shooed 1 | . . . . . . . . 1 Parts Field Recycled . | . . . . . . . . . Retrieved Matter . | . . . . . . . . . Parts Self-Destructed . | . . . . . . . . . Prevented . | . . . . . . . . . Kills | -11 -10 -10 -10 -9 -8 -7 -7 -6 ------- Run | Yrd Mat Min Exi Min Mat Fac DSF Fac Combat Hostiles Destroyed 26 | . . . . 16 1 . . 9 Melee 1 | . . . . . . . . 1 Guns 22 | . . . . 16 1 . . 5 AOE 3 | . . . . . . . . 3 Classes Destroyed 8 | . . . . 2 3 . . 3 Builder 1 | . . . . . . . . 1 Hauler 1 | . . . . . 1 . . . Mechanic 1 | . . . . . . . . 1 Watcher 1 | . . . . . 1 . . . Swarmer 8 | . . . . . . . . 8 Demolisher 2 | . . . . 2 . . . . Hunter 2 | . . . . . 1 . . 1 Assembled 14 | . . . . 14 . . . . Best Kill Streak 12 | . . . . 12 1 . . 10 Combat Bots Only 12 | . . . . 12 1 . . 8 Max Kills in Single Turn 2 | . . . . 1 1 . . 2 Gunslinging . | . . . . . . . . . Exploded 1 | . . . . . . . . 1 Melee 1 | . . . . . . . . 1 Uniques/NPCs Destroyed . | . . . . . . . . . Combat | -11 -10 -10 -10 -9 -8 -7 -7 -6 -------- Run | Yrd Mat Min Exi Min Mat Fac DSF Fac Hostile Shots Fired 242 | . . . . 21 12 . 6 203 Missed 82 | . . . . 4 4 . 2 72 Damage Taken 3027 | . . . . 326 121 . 92 2488 Core 911 | . . . . 32 14 . . 865 Absorbed by Shields 30 | . . . . . . . . 30 Redirected to Shielding 51 | . . . . . . . . 51 Core Remaining (%) 96 | 100 . . . 87 97 . 100 . Volleys Fired 7 | . 3 . . . . . . 4 Largest 2 | . 2 . . . . . . 1 Hottest 80 | . 80 . . . . . . 55 Shots Fired 77 | . 6 . . 29 16 . . 26 Gun 75 | . 6 . . 29 16 . . 24 Cannon . | . . . . . . . . . Launcher 2 | . . . . . . . . 2 Special . | . . . . . . . . . Kinetic 67 | . . . . 29 16 . . 22 Thermal 6 | . 6 . . . . . . . Explosive 2 | . . . . . . . . 2 Electromagnetic 2 | . . . . . . . . 2 Robot Hit Streak 11 | . 1 . . 11 8 . . 11 Robot Miss Streak 4 | . 3 . . 4 1 . . 2 Penetration Max . | . . . . . . . . . Secondary Targets . | . . . . . . . . . Autonomous 67 | . . . . 29 16 . . 22 Shots Hit Robots 69 | . 2 . . 24 15 . . 28 Core Hits 37 | . . . . 18 3 . . 16 Critical Kills 2 | . . . . 1 1 . . . Critical Parts Destroyed 3 | . . . . 1 2 . . . Critical Strikes 5 | . . . . 2 3 . . . Destroy 3 | . . . . 2 1 . . . Smash 2 | . . . . . 2 . . . Melee Attacks 17 | . . . . . 6 2 . 9 Impact 17 | . . . . . 6 2 . 9 Slashing . | . . . . . . . . . Piercing . | . . . . . . . . . Sneak Attacks 1 | . . . . . 1 . . . Combat Hostiles . | . . . . . . . . . Follow-up Attacks . | . . . . . . . . . Damage Inflicted 2592 | . 32 . . 768 404 . . 1388 Guns 1569 | . 32 . . 768 229 . . 540 Cannons . | . . . . . . . . . Explosions 553 | . . . . . . . . 553 Melee 465 | . . . . . 175 . . 290 Ramming 5 | . . . . . . . . 5 Kinetic 1502 | . . . . 768 229 . . 505 Thermal 163 | . 32 . . . . . . 131 Explosive 422 | . . . . . . . . 422 Electromagnetic 35 | . . . . . . . . 35 Impact 465 | . . . . . 175 . . 290 Slashing . | . . . . . . . . . Piercing . | . . . . . . . . . Highest Corruption 11 | . . . . . . . . 11 Average Corruption 11 | . . . . . . . . 11 Corruption Purged . | . . . . . . . . . Corruption Blocked . | . . . . . . . . . Effects 8 | . . . . . . . . 8 Message Errors 2 | . . . . . . . . 2 Matter Fused 2 | . . . . . . . . 2 Energy Discharges 2 | . . . . . . . . 2 Parts Rejected 1 | . . . . . . . . 1 Misdirections 1 | . . . . . . . . 1 Overload Shots . | . . . . . . . . . Overflow Damage 140 | . . . . . 107 . . 33 Projectiles . | . . . . . . . . . Explosions 33 | . . . . . . . . 33 Melee 107 | . . . . . 107 . . . Knockbacks 2 | . . . . . . . . 2 Impact 2 | . . . . . . . . 2 Kinetic . | . . . . . . . . . Secondary . | . . . . . . . . . Self-Inflicted Damage 89 | . . . . . . . . 89 Shots 2 | . . . . . . . . 2 Rammed 3 | . . . . 1 . . . 2 Targets Rammed 3 | . . . . 1 . . . 2 Kicked . | . . . . . . . . . Crushed . | . . . . . . . . . Highest Temperature 6 | . 6 . . . . . . . Average Temperature 3 | . 3 . . . . . . . Received Heat Transfer 102 | . . . . 66 18 . . 18 Siege Activations . | . . . . . . . . . Robots Corrupted . | . . . . . . . . . Combat Hostiles . | . . . . . . . . . Parts Fried . | . . . . . . . . . Impact Corruptions 3 | . . . . . 3 . . . Robots Melted . | . . . . . . . . . Combat Hostiles . | . . . . . . . . . Parts Melted . | . . . . . . . . . Heat Transferred 225 | . 75 . . . . . . 150 Parts Sabotaged . | . . . . . . . . . Parts Stolen . | . . . . . . . . . Parts Stripped . | . . . . . . . . . Power Chain Reactions . | . . . . . . . . . Alert | -11 -10 -10 -10 -9 -8 -7 -7 -6 ------- Run | Yrd Mat Min Exi Min Mat Fac DSF Fac Peak Influence 359 | . 34 13 . 64 156 87 64 359 Initial 70 | . . 13 . . . 70 64 33 Average 50 | . 20 13 . 17 49 78 64 202 Maximum Alert Level 1 | . . . . . . . . 1 Low Security (%) 90 | 100 100 100 . 100 100 100 100 34 Level 1 9 | . . . . . . . . 65 Level 2 . | . . . . . . . . . Level 3 . | . . . . . . . . . Level 4 . | . . . . . . . . . Level 5 . | . . . . . . . . . High Security . | . . . . . . . . . Max Security . | . . . . . . . . . Squads Dispatched 4 | . . . . . . 1 . 3 Investigation 2 | . . . . . . 1 . 1 Extermination . | . . . . . . . . . Reinforcement . | . . . . . . . . . Assault . | . . . . . . . . . Garrison 2 | . . . . . . . . 2 Intercept . | . . . . . . . . . Searches Triggered . | . . . . . . . . . Construction Impeded . | . . . . . . . . . Haulers Reinforced . | . . . . . . . . . Active Scanning Responses . | . . . . . . . . . Cargo Convoy Interrupts . | . . . . . . . . . Stealth | -11 -10 -10 -10 -9 -8 -7 -7 -6 --------- Run | Yrd Mat Min Exi Min Mat Fac DSF Fac Distress Signals 3 | . 1 . . . 1 . . 1 Communications Jammed . | . . . . . . . . . Distress Signals . | . . . . . . . . . Times Spotted 54 | . 2 . . 21 8 1 2 20 Peak Tracking Total 16 | . 1 . . 16 5 1 2 7 Tactical Retreats 7 | . . . . 2 1 . . 4 Traps | -11 -10 -10 -10 -9 -8 -7 -7 -6 ------- Run | Yrd Mat Min Exi Min Mat Fac DSF Fac Traps Triggered . | . . . . . . . . . Indirectly . | . . . . . . . . . Trap Hack Attempts . | . . . . . . . . . Triggered . | . . . . . . . . . Disarmed . | . . . . . . . . . Reprogrammed . | . . . . . . . . . Reused . | . . . . . . . . . Traps Extracted . | . . . . . . . . . Installed . | . . . . . . . . . Triggered . | . . . . . . . . . Machines | -11 -10 -10 -10 -9 -8 -7 -7 -6 ---------- Run | Yrd Mat Min Exi Min Mat Fac DSF Fac Machines Disabled 8 | . . . . 1 1 . . 6 Max in Single Turn 6 | . . . . 1 1 . . 6 Machines Repaired . | . . . . . . . . . Machines Dismantled . | . . . . . . . . . Machines Sabotaged . | . . . . . . . . . Overloaded Fab Kills . | . . . . . . . . . Hacking | -11 -10 -10 -10 -9 -8 -7 -7 -6 --------- Run | Yrd Mat Min Exi Min Mat Fac DSF Fac Machines Accessed 16 | . 2 . 5 1 3 2 . 3 Terminals 9 | . 2 . . . 2 2 . 3 Fabricators . | . . . . . . . . . Repair Stations . | . . . . . . . . . Recycling Units . | . . . . . . . . . Scanalyzers 1 | . . . . . 1 . . . Garrison Access . | . . . . . . . . . Total Hacks 62 | . 6 . 34 1 8 5 . 8 Successful 49 | . 3 . 34 1 5 1 . 5 Failed 13 | . 3 . . . 3 4 . 3 Catastrophic 5 | . 1 . . . 1 1 . 2 Database Lockouts . | . . . . . . . . . Manual 25 | . 6 . 1 . 7 4 . 7 Terminals 25 | . 6 . . . 6 5 . 8 Fabricators . | . . . . . . . . . Repair Stations . | . . . . . . . . . Recycling Units . | . . . . . . . . . Scanalyzers 2 | . . . . . 2 . . . Garrison Access . | . . . . . . . . . Terminal Hacks 40 | . 1 . 34 1 . 1 . 3 Record 33 | . . . 33 . . . . . Open Door 1 | . . . . 1 . . . . Open DSF 2 | . . . . . . 1 . 1 Terminal Index 2 | . 1 . . . . . . 1 Alert Level 1 | . . . . . . . . 1 Derelict Proto ID Bank 1 | . . . 1 . . . . . Fabricator Hacks . | . . . . . . . . . Repair Station Hacks . | . . . . . . . . . Recycling Unit Hacks . | . . . . . . . . . Scanalyzer 2 | . . . . . 2 . . . Insert Component 1 | . . . . . 1 . . . Analyze 1 | . . . . . 1 . . . Garrison Access Hacks . | . . . . . . . . . Unauthorized Hacks 7 | . 2 . . . 3 . . 2 Terminals 7 | . 2 . . . 3 . . 2 Assimilate 1 | . . . . . 1 . . . Botnet 6 | . 2 . . . 2 . . 2 Fabricators . | . . . . . . . . . Repair Stations . | . . . . . . . . . Recycling Units . | . . . . . . . . . Scanalyzers . | . . . . . . . . . Garrison Access . | . . . . . . . . . Data Cores Recovered . | . . . . . . . . . Used . | . . . . . . . . . Hacking Detections 6 | . 2 . . . 2 1 . 1 Full Trace Events 2 | . . . . . . 1 . 1 Feedback Events . | . . . . . . . . . Feedback Blocked 1 | . . . . . . . . 1 Robot Schematics Acquired . | . . . . . . . . . Robots Built . | . . . . . . . . . Authchips . | . . . . . . . . . Time . | . . . . . . . . . Total Robot Build Rating . | . . . . . . . . . Part Schematics Acquired 1 | . . . . . 1 . . . Parts Built . | . . . . . . . . . Authchips . | . . . . . . . . . Time . | . . . . . . . . . Total Part Build Rating . | . . . . . . . . . Parts Repaired . | . . . . . . . . . Time . | . . . . . . . . . Parts Recycled . | . . . . . . . . . Recycled Matter . | . . . . . . . . . Retrieved Matter . | . . . . . . . . . Retrieved Components . | . . . . . . . . . Parts Scanalyzed 1 | . . . . . 1 . . . Part Schematics Acquired 1 | . . . . . 1 . . . Parts Damaged . | . . . . . . . . . Bothacking | -11 -10 -10 -10 -9 -8 -7 -7 -6 ------------ Run | Yrd Mat Min Exi Min Mat Fac DSF Fac Used RIF Installer . | . . . . . . . . . Robots Hacked . | . . . . . . . . . Non-combat . | . . . . . . . . . Combat . | . . . . . . . . . Robot Hacks Applied . | . . . . . . . . . Relay Couplers Released . | . . . . . . . . . Fabnet Peak Effective % . | . . . . . . . . . Robots Rewired . | . . . . . . . . . Allies Hacked . | . . . . . . . . . Hacks Repelled . | . . . . . . . . . Allies | -11 -10 -10 -10 -9 -8 -7 -7 -6 -------- Run | Yrd Mat Min Exi Min Mat Fac DSF Fac Total Allies 6 | . . 5 . . 1 . . . Largest Group 5 | . . 5 5 3 1 . . . Highest-Rated Group 85 | . . 85 85 40 10 . . . Highest-Rated Ally 31 | . . 31 31 16 10 . . . Total Orders . | . . . . . . . . . Ally Attacks 25 | . . . . 25 . . . . Total Damage 247 | . . . . 247 . . . . Kills 5 | . . . . 5 . . . . Allies Corrupted 1 | . . . . 1 . . . . Allies Melted . | . . . . . . . . . Intel | -11 -10 -10 -10 -9 -8 -7 -7 -6 ------- Run | Yrd Mat Min Exi Min Mat Fac DSF Fac Robot Analysis Total . | . . . . . . . . . Derelict Logs Recovered 2 | . . 1 . 1 . . . . Drone Launches . | . . . . . . . . . Drone Recoveries . | . . . . . . . . . Exploration | -11 -10 -10 -10 -9 -8 -7 -7 -6 ------------- Run | Yrd Mat Min Exi Min Mat Fac DSF Fac Turns Passed 2022 | 66 138 331 534 438 241 45 13 216 Spaces Moved 2142 | 48 140 294 510 462 235 129 39 285 Core 91 | 21 . . . 1 . . . 69 Treads 12 | . 12 . . . . . . . Legs 79 | 27 32 . . . . . . 20 Wheels 1471 | . 14 294 510 456 179 . . 18 Hover 15 | . . . . . . . . 15 Flight 474 | . 82 . . 5 56 129 39 163 Fastest Speed 29 | 50 37 100 100 80 29 29 29 29 Average Speed 80 | 108 74 100 100 87 68 29 29 53 Slowest Speed 210 | 200 210 100 100 117 95 29 29 150 Overloaded Moves . | . . . . . . . . . Propulsion Burnouts . | . . . . . . . . . Robots Hopped 2 | . 1 . . . . . . 1 Cave-ins Triggered 1 | . . . . . . . . 1 Exploration Rate (%) 39 | 5 35 64 72 82 35 3 46 15 Regions Visited 8 Branch Regions 3 Pre-discovered Areas 1 | . . . 1 . . . . . Known Exits Taken 6 | . 1 1 1 1 1 1 . . Unknown Exits Taken 1 | 1 . . . . . . . . Scrap Searched 3 | . . 1 . 2 . . . . Spaces Dug 7 | . . . . . 2 2 . 3 Terrain Destroyed 69 | . . . . 19 14 2 . 34 Melee 7 | . . . . . 2 2 . 3 Projectile 37 | . . . . 19 12 . . 6 AOE 25 | . . . . . . . . 25 Terrain Rammed . | . . . . . . . . . Walls Destroyed . | . . . . . . . . . Machines Disabled . | . . . . . . . . . Actions | -11 -10 -10 -10 -9 -8 -7 -7 -6 --------- Run | Yrd Mat Min Exi Min Mat Fac DSF Fac Total 2398 | 59 167 330 536 494 309 132 39 332 Wait 93 | . . 35 13 9 30 . . 6 Move 2130 | 47 137 293 509 461 234 128 38 283 Hop 2 | . 1 . . . . . . 1 Pick Up 35 | 6 7 . 4 4 11 . . 3 Fast Attach 20 | 6 2 . 1 4 1 1 . 5 Attach 24 | . . . . 3 8 1 . 12 Detach 11 | . . . . 3 3 . . 5 Swap 19 | . 8 2 . 2 6 . 1 . Drop 35 | . 9 . 7 7 10 . . 2 Fire 7 | . 3 . . . . . . 4 Melee 17 | . . . . . 6 2 . 9 Ram 3 | . . . . 1 . . . 2 Kick . | . . . . . . . . . Crush . | . . . . . . . . . Escape Stasis . | . . . . . . . . . Rewire 2 | . . . 2 . . . . . Trap . | . . . . . . . . . Miscellaneous . | . . . . . . . . . Route ------- -11/Scrapyard -10/Materials -10/Mines (discovered 3 exits: *Mat x2 / *Exi) -10/Exiles -9/Mines (discovered 2 exits: *Mat x2) -8/Materials -7/Factory -7/DSF -6/Factory History --------- Turn | Location | Event 12 | -11/Scrapyard | Discovered new exit (range 16) 67 | -11/Scrapyard | Entered Materials 151 | -10/Materials | Met 8R-AWN 182 | -10/Materials | Discovered new exit (range 14) 204 | -10/Materials | Identified exit to Mines 205 | -10/Materials | Entered Mines 206 | -10/Mines | Followed 8R-AWN into the Mines 301 | -10/Mines | Learned Materials stockpile data 309 | -10/Mines | Build established: Mutant 365 | -10/Mines | Assisted by bots powering up and referring to "LRC-V3" 383 | -10/Mines | Discovered new exit (range 6) 390 | -10/Mines | Identified exit to Materials 398 | -10/Mines | Discovered exit to Materials (range 15) 476 | -10/Mines | Discovered new exit (range 5) 480 | -10/Mines | Identified exit to Exiles 536 | -10/Mines | Entered Exiles 536 | -10/Exiles | Accompanied by 5 allies 563 | -10/Exiles | Welcomed by 8R-AWN 566 | -10/Exiles | Led the pair of lost Derelicts to a safe place 579 | -10/Exiles | Met EX-HEX 648 | -10/Exiles | Met EX-DEC 676 | -10/Exiles | Learned location of Zion (-6) 720 | -10/Exiles | Discovered new exit (range 12) 732 | -10/Exiles | Identified exit to Mines 807 | -10/Exiles | Met EX-BIN 824 | -10/Exiles | Aligned with FarCom system 825 | -10/Exiles | Given EX-Vault access code 912 | -10/Exiles | Opened EX-Vault 923 | -10/Exiles | Found AWS/Gauss 926 | -10/Exiles | Found AWS/Thermal 932 | -10/Exiles | Found Gui. Plasma Cannon 957 | -10/Exiles | Warned to stay clear of 0b10 Research branches 1070 | -10/Exiles | Stole two prototypes: AWS/Gauss, AWS/Thermal 1070 | -10/Exiles | Entered Mines 1070 | -9/Mines | Accompanied by 3 allies 1083 | -9/Mines | Met a Derelict who couldn't figure out how to use a Trap Extractor 1089 | -9/Mines | Met a Derelict bent on vengeance 1105 | -9/Mines | Discovered new exit (range 14) 1180 | -9/Mines | Received a Rocket Launcher from a helpful Derelict 1245 | -9/Mines | Assembled infested the area 1296 | -9/Mines | Destroyed 12 combat bots 1414 | -9/Mines | Learned Materials interactive machine intel 1504 | -9/Mines | Discovered new exit (range 5) 1507 | -9/Mines | Identified exit to Materials 1508 | -9/Mines | Entered Materials 1508 | -8/Materials | Evolved 4 slots: Propulsion x2, Utility x2 1510 | -8/Materials | Loaded intel: 19 interactive machine locations 1746 | -8/Materials | Discovered new exit (range 13) 1749 | -8/Materials | Identified exit to Factory 1749 | -8/Materials | Entered Factory 1749 | -7/Factory | Evolved 2 slots: Utility x1, Weapon x1 1751 | -7/Factory | FarCom data flow suspended 1794 | -7/Factory | Identified exit to DSF 1794 | -7/Factory | Entered DSF 1803 | -7/DSF | Discovered new exit (range 14) 1807 | -7/DSF | Identified exit to Factory 1807 | -7/DSF | Entered Factory 1807 | -6/Factory | Evolved 2 slots: Propulsion x1, Utility x1 1850 | -6/Factory | Crushed by falling debris 1850 | -6/Factory | System corruption reached 10% 1920 | -6/Factory | Garrison activated, responded to threat 1945 | -6/Factory | Destroyed 8 combat bots 1965 | -6/Factory | Core integrity fell below 50% 1973 | -6/Factory | Core integrity fell below 20% 1999 | -6/Factory | Lost 17 parts (9n5u3w) 2023 | -6/Factory | Destroyed by H-66 Slayer with Gauss Rifle Last Messages --------------- 01969_ Penetrated by Slug. 01971_ System corrupted: Matter fused (-8). 01972_ Penetrated by Slug. 01972_ K-01 Serf destroyed. 01973_ Acquired 19 matter. 01973_ Extracted 10 matter. 01978_ W-25 Informer sends out distress signal. 01981_ Acquired Gravmag Array. [Achievement: Universal Adapter] 01983_ Acquired Gravmag Array. 01985_ Acquired Prototype Energy Gun. 01985_ Identified Prc. Shock Rifle. 01986_ System corrupted: Matter fused (-9). 02006_ Acquired Lyr. Medium Armor Plating. 02008_ Destroyed Lgt. Nuclear Core. 02009_ System corrupted: Prc. Shock Rifle rejected. 02018_ Slug penetrates Wall. 02019_ Slammed into G-50 Soldier. 02020_ Penetrated by Slug. 02021_ Slug penetrates Wall. Map ----- +----------------------------------------------------+ | ?????????????????????????????????????????????????? | | ?????????????????????????????????????????????????? | | ?????????????????????????????????????????????????? | | ?????????????????????????????????????????????????? | | ?????????????????????????????????????????????????? | | ?????????????????????????????????????????????????? | | ?????????????????????????????????????????????????? | | ?????????????????????????????????????????????????? | | ?????????????????????????????????????????????????? | | ?????????????????????????????????????????????????? | | ?????????????????????????????????????????????????? | | ?????????????????????????????????????????????????? | | ?????????????????????????????????????????????????? | | ?????????????????????????????????????????????????? | | ????????????????????????####?????????????????????? | | ??????????????????????? ?????????????????????? | | ???????????????????????? ?????????????????????? | | ??????????????????????? ?????????????????????? | | ??????????????????????? ?????????????????????? | | ???????????????????????? ?????????????????????? | | ????????????????????????" ""?????????????????????? | | ????????????????????????" "??????????????????????? | | ????????????????????????" "??????????????????????? | | ???????????##############;##??????? ?????????????? | | ???????????# ! + ##### T #???????????? | | ???????????# [ #s@ "" ????????????? | | ???????????# # #### #???????????? | | ???????????# sg #????????????????????? | | ???????????# # #????????????????????? | | ???????????# ! # #????????????????????? | | ???????????# # h #????????????????????? | | ???????????############# h #????????????????????? | | ???????????????????????# #????????????????????? | | ???????????????????????# ######+#######???????? | | ???????????????????????# # #???????? | | ???????????????????????# # #???????? | | ???????????????????????# # #???????? | | ??????????????????????## # #???????? | | ????????????????####### #! #???????? | | ????????????? " # #???????? | | ??????????? + #????#### | | ???????????? """ # [== #????# | | ???????????? ## """ # * #????# | | ????????????????# """ """ # = ] #????# | | ????????????????# "F" # #????# | | ????????????????# " """ # #????# | | ???????????????? ?""" """ ####+############## | | ??????????????? ???"" """ + ## | | ?????????????? ??? # ## | | ?????????????????? # ## | +----------------------------------------------------+ Best States ------------- Heat Dissipation 51 Energy Generation 14 Energy Capacity 250 Matter Stores 300 Matter Capacity 300 Sight Range 16 Terrain Scan Density 10 Armor Coverage 225 Propulsion Shielding 33 Evasion (%) 64 Recoil Reduction 2 Defensive Hacking 10 Item Schematics ----------------- Imp. Flight Unit | -8/Materials | Scanalyzed Robot Schematics ------------------ None Fabricated ------------ Nothing Alien Tech Used ----------------- None Achievements -------------- Let's See Who's Tougher Librarian Safety First Universal Adapter Unlikely Earthworm Challenges ------------ None Game ------ Seed HackingDisruptionPick Manual? 0 Play Time 01:00:27 Cumulative 8.0 hours Start 2024.04.17 @ 15:42:11 End 2024.04.17 @ 16:59:19 Sessions 1 Manual Loads 0 Difficulty Rogue Special Mode None Game No. 7 Rogue 7 Adventurer 0 Explorer 0 Win Type - Total 0 Types 0/0/0/0/0/0/0/0/0 Lore% 8 Gallery% 16 Achievement% 16 Wizard Run 0 Options --------- Layout 0 ASCII 0 Keyboard 0 Movement Arrows Keybinds 0 Fullscreen 2 Font 18/SmallcapsGlow Map View 76x50 Zoom Use 0% Tactical HUD 1 Map Filters NONE Filters NONE Steam 1 RUN: 1cfd2780-9ec5-411f-8435-eee43a8fdbf3